[Event "*** Titled Tuesday Blitz"]
[Site "Chess.com"]
[Date "2019.01.01"]
[Round "8"]
[White "rasmussvane"]
[Black "BogdanDeac"]
[Result "1-0"]
[WhiteElo "2730"]
[BlackElo "2741"]
[TimeControl "180+2"]
[EndTime "14:56:55 PST"]
[Termination "rasmussvane won by resignation"]

1. Nf3 {[%clk 0:03:01.9]} 1... d5 {[%clk 0:02:59.9]} 2. d4 {[%clk 0:03:02.9]}
2... e6 {[%clk 0:02:59.7]} 3. c4 {[%clk 0:03:03.9]} 3... c6 {[%clk 0:03:00.6]}
4. e3 {[%clk 0:03:02.9]} 4... Nf6 {[%clk 0:02:59.5]} 5. b3 {[%clk 0:03:02.6]}
5... c5 {[%clk 0:02:58.7]} 6. dxc5 {[%clk 0:02:58.8]} 6... Bxc5 {[%clk
0:02:58.7]} 7. Bb2 {[%clk 0:02:59.3]} 7... O-O {[%clk 0:02:59.4]} 8. Nbd2 {[%clk
0:03:00]} 8... b6 {[%clk 0:02:54.3]} 9. cxd5 {[%clk 0:02:46.9]} 9... Nxd5 {[%clk
0:02:53.6]} 10. Qb1 {[%clk 0:02:40]} 10... Bb7 {[%clk 0:02:48.1]} 11. Bd3 {[%clk
0:02:40.4]} 11... h6 {[%clk 0:02:48.6]} 12. O-O {[%clk 0:02:40.9]} 12... Nd7
{[%clk 0:02:48.7]} 13. Rd1 {[%clk 0:02:41.6]} 13... Rc8 {[%clk 0:02:48.6]} 14.
Nc4 {[%clk 0:01:58.3]} 14... Qe7 {[%clk 0:02:47]} 15. a3 {[%clk 0:01:57.1]}
15... b5 {[%clk 0:02:46.2]} 16. Na5 {[%clk 0:01:55.3]} 16... Ba6 {[%clk
0:02:40.3]} 17. a4 {[%clk 0:01:54.8]} 17... Nc7 {[%clk 0:01:57.2]} 18. Nc6
{[%clk 0:01:48.8]} 18... Qe8 {[%clk 0:01:57.5]} 19. b4 {[%clk 0:01:43.8]} 19...
Bb7 {[%clk 0:01:49.9]} 20. axb5 {[%clk 0:01:40.6]} 20... Bb6 {[%clk 0:01:48.3]}
21. Nxa7 {[%clk 0:01:07.6]} 21... Bxf3 {[%clk 0:01:44]} 22. Nxc8 {[%clk
0:00:55.8]} 22... Bxd1 {[%clk 0:01:43.5]} 23. Nd6 {[%clk 0:00:57.1]} 23... Qe7
{[%clk 0:01:42.2]} 24. Qxd1 {[%clk 0:00:58.4]} 24... Rd8 {[%clk 0:01:43]} 25.
Nc4 {[%clk 0:00:53.8]} 25... Nxb5 {[%clk 0:01:42]} 26. Qg4 {[%clk 0:00:54.7]}
26... Nf6 {[%clk 0:01:39.8]} 27. Qe2 {[%clk 0:00:55.7]} 27... Bc7 {[%clk
0:01:36.8]} 28. Rb1 {[%clk 0:00:54.3]} 28... Nd5 {[%clk 0:01:33.1]} 29. Qe1
{[%clk 0:00:47.5]} 29... Nxb4 {[%clk 0:01:27.4]} 30. Bf1 {[%clk 0:00:47.2]}
30... Nd3 {[%clk 0:01:11.9]} 31. Bxd3 {[%clk 0:00:45.3]} 31... Rxd3 {[%clk
0:01:13.8]} 32. Bxg7 {[%clk 0:00:41.8]} 32... Qh4 {[%clk 0:00:57.1]} 33. Ne5
{[%clk 0:00:35.3]} 33... Rd5 {[%clk 0:00:31.6]} 34. Nf3 {[%clk 0:00:36.4]} 34...
Bxh2+ {[%clk 0:00:32.5]} 35. Nxh2 {[%clk 0:00:32.5]} 35... Kxg7 {[%clk
0:00:33.2]} 36. Nf3 {[%clk 0:00:32]} 36... Qe4 {[%clk 0:00:33.7]} 37. Rb4 {[%clk
0:00:31.2]} 37... Qc2 {[%clk 0:00:32.6]} 38. Qa1+ {[%clk 0:00:26.5]} 38... Kh7
{[%clk 0:00:33]} 39. Nd4 {[%clk 0:00:16.2]} 39... Nxd4 {[%clk 0:00:25.3]} 40.
Rxd4 {[%clk 0:00:17.3]} 40... Rf5 {[%clk 0:00:19]} 41. Qf1 {[%clk 0:00:17.6]}
41... h5 {[%clk 0:00:19.6]} 42. Rc4 {[%clk 0:00:18.3]} 42... Qb2 {[%clk
0:00:20]} 43. Rh4 {[%clk 0:00:17.2]} 43... Kg7 {[%clk 0:00:20.5]} 44. Rh3 {[%clk
0:00:15.8]} 44... Ra5 {[%clk 0:00:20.6]} 45. Kh2 {[%clk 0:00:16.1]} 45... Qe5+
{[%clk 0:00:19.6]} 46. Rg3+ {[%clk 0:00:16.3]} 46... Kh6 {[%clk 0:00:20.2]} 47.
f4 {[%clk 0:00:17.9]} 47... Qf6 {[%clk 0:00:21.1]} 48. Rh3 {[%clk 0:00:13.5]}
48... Kg7 {[%clk 0:00:21.2]} 49. Qf3 {[%clk 0:00:14.3]} 49... h4 {[%clk
0:00:20.1]} 50. Qg4+ {[%clk 0:00:15]} 50... Qg6 {[%clk 0:00:18.9]} 51. Qxh4
{[%clk 0:00:15.4]} 1-0

[Event "*** Titled Tuesday Blitz"]
[Site "Chess.com"]
[Date "2019.01.01"]
[Round "8"]
[White "tarantul1"]
[Black "guillembaches"]
[Result "1-0"]
[WhiteElo "2406"]
[BlackElo "2352"]
[TimeControl "180+2"]
[EndTime "14:56:56 PST"]
[Termination "tarantul1 won by checkmate"]

1. e4 {[%clk 0:03:01.9]} 1... c5 {[%clk 0:03:00.8]} 2. Nf3 {[%clk 0:03:02.6]}
2... d6 {[%clk 0:03:02.3]} 3. d4 {[%clk 0:03:03.4]} 3... cxd4 {[%clk 0:03:03.8]}
4. Nxd4 {[%clk 0:03:05.3]} 4... Nf6 {[%clk 0:03:05.1]} 5. Nc3 {[%clk 0:03:06.8]}
5... Nc6 {[%clk 0:03:06.7]} 6. g3 {[%clk 0:03:07.4]} 6... Bd7 {[%clk 0:03:02.7]}
7. Bg2 {[%clk 0:03:07.3]} 7... g6 {[%clk 0:03:03.8]} 8. Nde2 {[%clk 0:03:07.6]}
8... Bg7 {[%clk 0:03:02.8]} 9. O-O {[%clk 0:03:09.1]} 9... O-O {[%clk
0:03:03.3]} 10. h3 {[%clk 0:03:10.3]} 10... Rb8 {[%clk 0:02:59.8]} 11. a4 {[%clk
0:03:10.9]} 11... a6 {[%clk 0:03:00.8]} 12. Be3 {[%clk 0:03:05.6]} 12... b5
{[%clk 0:02:58.1]} 13. axb5 {[%clk 0:03:07.5]} 13... axb5 {[%clk 0:02:59.6]} 14.
Nd5 {[%clk 0:03:06]} 14... Ne8 {[%clk 0:02:51.8]} 15. Ra2 {[%clk 0:02:43.9]}
15... e6 {[%clk 0:02:43.1]} 16. Ndc3 {[%clk 0:02:44.4]} 16... b4 {[%clk
0:02:37.8]} 17. Na4 {[%clk 0:02:42.7]} 17... b3 {[%clk 0:02:11.8]} 18. cxb3
{[%clk 0:02:43.6]} 18... Nb4 {[%clk 0:02:12.9]} 19. Ra1 {[%clk 0:02:40.4]} 19...
Bb5 {[%clk 0:02:05.2]} 20. Nac3 {[%clk 0:02:32.5]} 20... Bd3 {[%clk 0:02:01.1]}
21. Rc1 {[%clk 0:02:24.6]} 21... d5 {[%clk 0:01:52.9]} 22. exd5 {[%clk
0:01:55.5]} 22... exd5 {[%clk 0:01:54.8]} 23. Bc5 {[%clk 0:01:24.2]} 23... Nd6
{[%clk 0:01:38.8]} 24. Bxb4 {[%clk 0:00:58.6]} 24... Bxe2 {[%clk 0:01:38.8]} 25.
Qxe2 {[%clk 0:00:53.3]} 25... Rxb4 {[%clk 0:01:36.8]} 26. Bxd5 {[%clk
0:00:50.7]} 26... Nf5 {[%clk 0:01:29.2]} 27. Rfd1 {[%clk 0:00:47.2]} 27... Qb8
{[%clk 0:01:25.9]} 28. Bc4 {[%clk 0:00:37.8]} 28... h5 {[%clk 0:01:12.7]} 29.
Nd5 {[%clk 0:00:23]} 29... Rb7 {[%clk 0:01:06.2]} 30. b4 {[%clk 0:00:22.8]}
30... Qa7 {[%clk 0:00:57.3]} 31. Kg2 {[%clk 0:00:21.4]} 31... h4 {[%clk
0:00:52.9]} 32. g4 {[%clk 0:00:21.9]} 32... Nd4 {[%clk 0:00:54.1]} 33. Qe3
{[%clk 0:00:17.9]} 33... Rd7 {[%clk 0:00:48.7]} 34. b5 {[%clk 0:00:17.7]} 34...
Rfd8 {[%clk 0:00:44.3]} 35. b6 {[%clk 0:00:17.9]} 35... Qb7 {[%clk 0:00:45.2]}
36. Rxd4 {[%clk 0:00:14.9]} 36... Bxd4 {[%clk 0:00:46.2]} 37. Qxd4 {[%clk
0:00:16.8]} 37... Kh7 {[%clk 0:00:37.3]} 38. Rd1 {[%clk 0:00:14.7]} 38... Rd6
{[%clk 0:00:34.5]} 39. f3 {[%clk 0:00:14.5]} 39... Qa8 {[%clk 0:00:27.9]} 40.
Qf2 {[%clk 0:00:10.9]} 40... Qb7 {[%clk 0:00:25.8]} 41. Qxh4+ {[%clk 0:00:11.3]}
41... Kg7 {[%clk 0:00:26.5]} 42. Qg5 {[%clk 0:00:10.9]} 42... Qc8 {[%clk
0:00:23.7]} 43. Qe5+ {[%clk 0:00:10.7]} 43... f6 {[%clk 0:00:22.2]} 44. Qe7+
{[%clk 0:00:11.3]} 44... Kh6 {[%clk 0:00:23.7]} 45. Qe3+ {[%clk 0:00:06.5]}
45... Kg7 {[%clk 0:00:23.9]} 46. Qe7+ {[%clk 0:00:07.9]} 46... Kh6 {[%clk
0:00:25]} 47. Rd3 {[%clk 0:00:09.3]} 47... Qxc4 {[%clk 0:00:23.5]} 48. Nxf6
{[%clk 0:00:06.7]} 48... Qc2+ {[%clk 0:00:18]} 49. Kg3 {[%clk 0:00:07.4]} 49...
Qxd3 {[%clk 0:00:17]} 50. g5+ {[%clk 0:00:06.7]} 50... Kxg5 {[%clk 0:00:16.3]}
51. Ng4+ {[%clk 0:00:08]} 51... Kf5 {[%clk 0:00:14.2]} 52. Qe5# {[%clk 0:00:09]}
1-0

[Event "*** Titled Tuesday Blitz"]
[Site "Chess.com"]
[Date "2019.01.01"]
[Round "8"]
[White "VNeimer"]
[Black "iLuusions"]
[Result "0-1"]
[WhiteElo "2397"]
[BlackElo "2566"]
[TimeControl "180+2"]
[EndTime "14:56:59 PST"]
[Termination "iLuusions won by checkmate"]

1. Nf3 {[%clk 0:03:01.9]} 1... Nf6 {[%clk 0:03:01]} 2. c4 {[%clk 0:03:02.7]}
2... e6 {[%clk 0:02:59.5]} 3. g3 {[%clk 0:03:03.6]} 3... d5 {[%clk 0:03:00.7]}
4. Bg2 {[%clk 0:03:04.7]} 4... dxc4 {[%clk 0:03:02.2]} 5. Qa4+ {[%clk
0:03:05.5]} 5... Bd7 {[%clk 0:03:02.5]} 6. Qxc4 {[%clk 0:03:06.5]} 6... c5
{[%clk 0:03:04.4]} 7. O-O {[%clk 0:03:07.3]} 7... Bc6 {[%clk 0:02:45.2]} 8. Qc2
{[%clk 0:02:46.3]} 8... Nbd7 {[%clk 0:02:38.6]} 9. Nc3 {[%clk 0:02:47.2]} 9...
Be7 {[%clk 0:02:34.2]} 10. d3 {[%clk 0:02:41.3]} 10... O-O {[%clk 0:02:34.6]}
11. a4 {[%clk 0:02:32.6]} 11... b6 {[%clk 0:02:34.7]} 12. b3 {[%clk 0:02:29.8]}
12... Rc8 {[%clk 0:02:29.7]} 13. Bb2 {[%clk 0:02:30.2]} 13... Qc7 {[%clk
0:02:30.5]} 14. Rfc1 {[%clk 0:02:26.1]} 14... Qb7 {[%clk 0:02:29.9]} 15. Qd2
{[%clk 0:02:20.5]} 15... Rfd8 {[%clk 0:02:28.3]} 16. h4 {[%clk 0:02:10.2]} 16...
Nd5 {[%clk 0:02:23.6]} 17. h5 {[%clk 0:01:59.2]} 17... h6 {[%clk 0:02:22.2]} 18.
a5 {[%clk 0:01:52.7]} 18... Bf6 {[%clk 0:02:16.6]} 19. axb6 {[%clk 0:01:50.1]}
19... axb6 {[%clk 0:02:17.5]} 20. Ne1 {[%clk 0:01:48.7]} 20... Nxc3 {[%clk
0:02:01.4]} 21. Bxc3 {[%clk 0:01:50.6]} 21... Bxc3 {[%clk 0:02:02.5]} 22. Qxc3
{[%clk 0:01:51.3]} 22... Nf6 {[%clk 0:02:03.2]} 23. Qc4 {[%clk 0:01:37.9]} 23...
Nxh5 {[%clk 0:02:00.6]} 24. Bxc6 {[%clk 0:01:36.2]} 24... Qxc6 {[%clk
0:02:00.2]} 25. b4 {[%clk 0:01:37.6]} 25... Qd6 {[%clk 0:01:44.6]} 26. Ra6
{[%clk 0:01:30.9]} 26... Qd7 {[%clk 0:01:30.6]} 27. Rb1 {[%clk 0:01:19.5]} 27...
b5 {[%clk 0:01:28.3]} 28. Qh4 {[%clk 0:01:18.6]} 28... Nf6 {[%clk 0:01:25]} 29.
bxc5 {[%clk 0:01:19.7]} 29... Rxc5 {[%clk 0:01:26.1]} 30. Rb6 {[%clk 0:01:10.9]}
30... Nd5 {[%clk 0:01:20.2]} 31. R6xb5 {[%clk 0:01:11.3]} 31... g5 {[%clk
0:01:12.4]} 32. Qxh6 {[%clk 0:01:09.5]} 32... Rxb5 {[%clk 0:01:03.5]} 33. Qxg5+
{[%clk 0:01:09.7]} 33... Kh7 {[%clk 0:00:55.4]} 34. Rxb5 {[%clk 0:01:11.6]}
34... Qxb5 {[%clk 0:00:57]} 35. Qxd8 {[%clk 0:01:11.9]} 35... Qb1 {[%clk
0:00:53.9]} 36. Kf1 {[%clk 0:01:13]} 36... Qd1 {[%clk 0:00:54.2]} 37. Qh4+
{[%clk 0:01:12.4]} 37... Kg7 {[%clk 0:00:55.5]} 38. Qd4+ {[%clk 0:01:12.4]}
38... Kg8 {[%clk 0:00:56.5]} 39. e4 {[%clk 0:01:11.1]} 39... Qg4 {[%clk
0:00:48.8]} 40. Qe5 {[%clk 0:00:56.2]} 40... Ne7 {[%clk 0:00:43.9]} 41. f3
{[%clk 0:00:51.6]} 41... Qh3+ {[%clk 0:00:44.6]} 42. Ng2 {[%clk 0:00:52.7]}
42... Ng6 {[%clk 0:00:45.9]} 43. Qg5 {[%clk 0:00:52.2]} 43... Qh1+ {[%clk
0:00:46.3]} 44. Kf2 {[%clk 0:00:53.1]} 44... Qd1 {[%clk 0:00:47.3]} 45. Qe3
{[%clk 0:00:51.5]} 45... Ne5 {[%clk 0:00:38.4]} 46. Qg5+ {[%clk 0:00:52]} 46...
Ng6 {[%clk 0:00:39.3]} 47. Qe3 {[%clk 0:00:51.7]} 47... Ne5 {[%clk 0:00:38.9]}
48. Nf4 {[%clk 0:00:52.8]} 48... Qc2+ {[%clk 0:00:36.5]} 49. Qe2 {[%clk
0:00:52.8]} 49... Qc5+ {[%clk 0:00:37.6]} 50. Kg2 {[%clk 0:00:52.9]} 50... Qc3
{[%clk 0:00:37.4]} 51. Qd1 {[%clk 0:00:48.7]} 51... Nc6 {[%clk 0:00:38.3]} 52.
Ne2 {[%clk 0:00:48.3]} 52... Qb2 {[%clk 0:00:31.8]} 53. d4 {[%clk 0:00:48.3]}
53... Nb4 {[%clk 0:00:31.1]} 54. d5 {[%clk 0:00:45.3]} 54... exd5 {[%clk
0:00:33]} 55. exd5 {[%clk 0:00:46.7]} 55... Nc2 {[%clk 0:00:34.4]} 56. Kg1
{[%clk 0:00:26]} 56... Qb6+ {[%clk 0:00:33.9]} 57. Kh2 {[%clk 0:00:19.5]} 57...
Qf2+ {[%clk 0:00:34.6]} 58. Kh3 {[%clk 0:00:18.1]} 58... Ne3 {[%clk 0:00:33.9]}
59. Qd3 {[%clk 0:00:14]} 59... Qxf3 {[%clk 0:00:35.1]} 60. Nf4 {[%clk
0:00:11.7]} 60... Qh1# {[%clk 0:00:35.7]} 0-1

[Event "*** Titled Tuesday Blitz"]
[Site "Chess.com"]
[Date "2019.01.01"]
[Round "8"]
[White "Mikhail_Golubev"]
[Black "joppie2"]
[Result "0-1"]
[WhiteElo "2517"]
[BlackElo "2746"]
[TimeControl "180+2"]
[EndTime "14:57:08 PST"]
[Termination "joppie2 won on time"]

1. e4 {[%clk 0:03:01.9]} 1... c5 {[%clk 0:02:57.7]} 2. Nf3 {[%clk 0:03:02]} 2...
d6 {[%clk 0:02:55.8]} 3. d4 {[%clk 0:03:02.2]} 3... cxd4 {[%clk 0:02:57.7]} 4.
Nxd4 {[%clk 0:03:03.1]} 4... Nf6 {[%clk 0:02:59.2]} 5. Nc3 {[%clk 0:03:04]} 5...
a6 {[%clk 0:02:56.1]} 6. Bc4 {[%clk 0:03:03.9]} 6... e6 {[%clk 0:02:56.8]} 7.
Bb3 {[%clk 0:03:04.9]} 7... Nbd7 {[%clk 0:02:58.1]} 8. O-O {[%clk 0:03:02.9]}
8... Nc5 {[%clk 0:02:55.5]} 9. f4 {[%clk 0:03:03.8]} 9... Be7 {[%clk 0:02:56.1]}
10. e5 {[%clk 0:02:57.5]} 10... Nfd7 {[%clk 0:02:53.7]} 11. exd6 {[%clk
0:02:56.1]} 11... Bxd6 {[%clk 0:02:54.8]} 12. Nxe6 {[%clk 0:02:52.1]} 12... Qb6
{[%clk 0:02:55.6]} 13. Nxg7+ {[%clk 0:02:11]} 13... Kf8 {[%clk 0:02:54.6]} 14.
Nf5 {[%clk 0:02:08.6]} 14... Nxb3+ {[%clk 0:02:54.5]} 15. Be3 {[%clk 0:02:08.2]}
15... Bc5 {[%clk 0:02:54.8]} 16. Nd5 {[%clk 0:02:03.6]} 16... Qe6 {[%clk
0:02:37]} 17. axb3 {[%clk 0:02:02.3]} 17... Qxf5 {[%clk 0:01:38.4]} 18. Bxc5+
{[%clk 0:01:59.1]} 18... Nxc5 {[%clk 0:01:40.3]} 19. Qd4 {[%clk 0:01:58.1]}
19... Rg8 {[%clk 0:01:36.6]} 20. Qxc5+ {[%clk 0:01:55.9]} 20... Kg7 {[%clk
0:01:38.5]} 21. Qd4+ {[%clk 0:01:33.9]} 21... Kf8 {[%clk 0:01:37.4]} 22. Qb4+
{[%clk 0:01:21]} 22... Kg7 {[%clk 0:01:33.9]} 23. Ne7 {[%clk 0:01:20.1]} 23...
Qf6 {[%clk 0:01:30.8]} 24. Nxg8 {[%clk 0:01:17.1]} 24... Kxg8 {[%clk 0:01:32.7]}
25. f5 {[%clk 0:01:09.6]} 25... Bd7 {[%clk 0:01:33.6]} 26. Rad1 {[%clk
0:01:03.2]} 26... Bc6 {[%clk 0:01:34.3]} 27. Rfe1 {[%clk 0:00:29.3]} 27... Qxf5
{[%clk 0:01:17.2]} 28. Rd3 {[%clk 0:00:14.1]} 28... Qf6 {[%clk 0:01:14.6]} 29.
Rg3+ {[%clk 0:00:13.3]} 29... Kh8 {[%clk 0:01:15.8]} 30. Qc3 {[%clk 0:00:14.3]}
30... Qxc3 {[%clk 0:01:16]} 31. bxc3 {[%clk 0:00:15.1]} 31... Rd8 {[%clk
0:01:17.1]} 32. Rge3 {[%clk 0:00:13]} 32... Kg7 {[%clk 0:01:16.8]} 33. Kf2
{[%clk 0:00:12.3]} 33... Rd5 {[%clk 0:01:16.2]} 34. c4 {[%clk 0:00:12.5]} 34...
Rf5+ {[%clk 0:01:16]} 35. Ke2 {[%clk 0:00:13]} 35... a5 {[%clk 0:01:17.3]} 36.
g3 {[%clk 0:00:13]} 36... Rf6 {[%clk 0:01:09.6]} 37. Rf1 {[%clk 0:00:13.3]}
37... Rh6 {[%clk 0:01:07.7]} 38. h4 {[%clk 0:00:13]} 38... Kf8 {[%clk
0:01:09.1]} 39. Rf4 {[%clk 0:00:13.4]} 39... Rd6 {[%clk 0:01:08.7]} 40. Rd3
{[%clk 0:00:12.9]} 40... Re6+ {[%clk 0:01:09.8]} 41. Re3 {[%clk 0:00:13.7]}
41... Rd6 {[%clk 0:01:10.8]} 42. Rf5 {[%clk 0:00:13.5]} 42... a4 {[%clk
0:01:08.4]} 43. bxa4 {[%clk 0:00:10.3]} 43... Bxa4 {[%clk 0:01:10.3]} 44. c3
{[%clk 0:00:09.6]} 44... Bb3 {[%clk 0:01:10.4]} 45. c5 {[%clk 0:00:09.6]} 45...
Bc4+ {[%clk 0:01:11.7]} 46. Kf3 {[%clk 0:00:07.2]} 46... Rd1 {[%clk 0:01:12.7]}
47. Rfe5 {[%clk 0:00:06.7]} 47... Kg7 {[%clk 0:01:11]} 48. g4 {[%clk 0:00:06.7]}
48... h6 {[%clk 0:01:08.1]} 49. Kg3 {[%clk 0:00:05.8]} 49... Rg1+ {[%clk
0:01:08.4]} 50. Kf3 {[%clk 0:00:04.5]} 50... Rf1+ {[%clk 0:01:09.5]} 51. Kg2
{[%clk 0:00:05.4]} 51... Rc1 {[%clk 0:01:08.5]} 52. Rf3 {[%clk 0:00:05.4]} 52...
Rd1 {[%clk 0:01:07.6]} 53. Kg3 {[%clk 0:00:05]} 53... Rg1+ {[%clk 0:01:08.3]}
54. Kh3 {[%clk 0:00:03.8]} 54... Be6 {[%clk 0:01:07.1]} 55. Rg3 {[%clk
0:00:03.8]} 55... Rd1 {[%clk 0:01:06.1]} 56. Kg2 {[%clk 0:00:04]} 56... Kf6
{[%clk 0:01:07.5]} 57. Rh5 {[%clk 0:00:03.5]} 57... Kg6 {[%clk 0:01:07.8]} 58.
Re5 {[%clk 0:00:04.4]} 58... Kf6 {[%clk 0:01:08.1]} 59. Re2 {[%clk 0:00:04.6]}
59... Rd5 {[%clk 0:01:09.1]} 60. Rf2+ {[%clk 0:00:04.9]} 60... Kg6 {[%clk
0:01:09.3]} 61. Kf3 {[%clk 0:00:04.8]} 61... Rxc5 {[%clk 0:01:10.6]} 62. Ke3
{[%clk 0:00:04]} 62... Rxc3+ {[%clk 0:01:11.4]} 63. Kf4 {[%clk 0:00:04.3]} 63...
Rc4+ {[%clk 0:01:12.7]} 64. Kf3 {[%clk 0:00:03.4]} 64... b5 {[%clk 0:01:11.6]}
65. Rb2 {[%clk 0:00:02.3]} 65... b4 {[%clk 0:01:11.4]} 0-1

[Event "*** Titled Tuesday Blitz"]
[Site "Chess.com"]
[Date "2019.01.01"]
[Round "8"]
[White "Babas"]
[Black "Manukyan_Artak"]
[Result "1/2-1/2"]
[WhiteElo "2289"]
[BlackElo "2387"]
[TimeControl "180+2"]
[EndTime "14:57:10 PST"]
[Termination "Game drawn by repetition"]

1. d4 {[%clk 0:03:00.6]} 1... d6 {[%clk 0:03:00.5]} 2. Bf4 {[%clk 0:02:58.2]}
2... Nf6 {[%clk 0:02:58.7]} 3. e3 {[%clk 0:02:59.4]} 3... g6 {[%clk 0:02:58.3]}
4. h3 {[%clk 0:02:58.9]} 4... Bg7 {[%clk 0:02:59]} 5. Be2 {[%clk 0:03:00.4]}
5... O-O {[%clk 0:03:00]} 6. Nf3 {[%clk 0:03:02]} 6... c5 {[%clk 0:02:57.3]} 7.
c3 {[%clk 0:03:02.4]} 7... Qb6 {[%clk 0:02:57.5]} 8. Qc1 {[%clk 0:02:32.6]} 8...
Nc6 {[%clk 0:02:51.2]} 9. O-O {[%clk 0:02:33.6]} 9... a5 {[%clk 0:02:51.3]} 10.
a4 {[%clk 0:02:34.4]} 10... Bf5 {[%clk 0:02:46.1]} 11. Na3 {[%clk 0:02:35.1]}
11... cxd4 {[%clk 0:02:45.1]} 12. exd4 {[%clk 0:02:32.1]} 12... Rac8 {[%clk
0:02:41.5]} 13. Bh6 {[%clk 0:02:28.7]} 13... Bxh6 {[%clk 0:02:33.8]} 14. Qxh6
{[%clk 0:02:28.4]} 14... Qxb2 {[%clk 0:02:35.1]} 15. Rfe1 {[%clk 0:01:44]} 15...
Qxc3 {[%clk 0:02:20.6]} 16. Nb5 {[%clk 0:01:40.3]} 16... Qb4 {[%clk 0:02:08.2]}
17. Bf1 {[%clk 0:01:35.4]} 17... d5 {[%clk 0:01:54.6]} 18. Rec1 {[%clk
0:01:27.5]} 18... Be4 {[%clk 0:01:43.6]} 19. Qe3 {[%clk 0:01:12]} 19... Bxf3
{[%clk 0:01:36.2]} 20. gxf3 {[%clk 0:01:12.8]} 20... e6 {[%clk 0:01:32.3]} 21.
Rc5 {[%clk 0:00:45.1]} 21... Nd7 {[%clk 0:01:21.5]} 22. Rc3 {[%clk 0:00:41.7]}
22... Qe7 {[%clk 0:01:11.1]} 23. Rac1 {[%clk 0:00:42.6]} 23... Nb6 {[%clk
0:01:08]} 24. Ra1 {[%clk 0:00:26.4]} 24... Nb4 {[%clk 0:01:02.7]} 25. Rac1
{[%clk 0:00:10.4]} 25... Rxc3 {[%clk 0:00:52.7]} 26. Rxc3 {[%clk 0:00:12.3]}
26... Rc8 {[%clk 0:00:34.9]} 27. Rxc8+ {[%clk 0:00:11.9]} 27... Nxc8 {[%clk
0:00:36]} 28. Qe5 {[%clk 0:00:13.8]} 28... Nb6 {[%clk 0:00:30.7]} 29. Qb8+
{[%clk 0:00:14.3]} 29... Kg7 {[%clk 0:00:30.9]} 30. Qa7 {[%clk 0:00:15.9]} 30...
Nxa4 {[%clk 0:00:26.3]} 31. Qxa5 {[%clk 0:00:16.8]} 31... Nb2 {[%clk 0:00:26]}
32. Qa8 {[%clk 0:00:14.2]} 32... Nc4 {[%clk 0:00:24.7]} 33. Qb8 {[%clk
0:00:13.7]} 33... Nc6 {[%clk 0:00:24.3]} 34. Qa8 {[%clk 0:00:11.9]} 34... h5
{[%clk 0:00:19.6]} 35. Qc8 {[%clk 0:00:12.6]} 35... Nd2 {[%clk 0:00:20.3]} 36.
Nc7 {[%clk 0:00:12.6]} 36... Nxf3+ {[%clk 0:00:20.2]} 37. Kg2 {[%clk 0:00:13.5]}
37... Nh4+ {[%clk 0:00:20.8]} 38. Kh1 {[%clk 0:00:14.8]} 38... Kf6 {[%clk
0:00:19.1]} 39. Qxb7 {[%clk 0:00:14.9]} 39... Nxd4 {[%clk 0:00:19.6]} 40. Qb8
{[%clk 0:00:12.9]} 40... Kf5 {[%clk 0:00:16.4]} 41. Bd3+ {[%clk 0:00:12.2]}
41... Kg5 {[%clk 0:00:17.6]} 42. Ne8 {[%clk 0:00:11.9]} 42... e5 {[%clk
0:00:16.3]} 43. Nd6 {[%clk 0:00:11]} 43... Ndf5 {[%clk 0:00:15]} 44. Bxf5 {[%clk
0:00:08.5]} 44... Nxf5 {[%clk 0:00:15.9]} 45. Nb5 {[%clk 0:00:09.1]} 45... d4
{[%clk 0:00:14.8]} 46. Qa8 {[%clk 0:00:09.7]} 46... e4 {[%clk 0:00:14.6]} 47.
Qb8 {[%clk 0:00:09.1]} 47... e3 {[%clk 0:00:13.9]} 48. h4+ {[%clk 0:00:09.2]}
48... Kxh4 {[%clk 0:00:09.7]} 49. Qf4+ {[%clk 0:00:10.2]} 49... Kh3 {[%clk
0:00:08]} 50. Qf3+ {[%clk 0:00:11.6]} 50... Kh4 {[%clk 0:00:09]} 51. Qf4+ {[%clk
0:00:13.5]} 51... Kh3 {[%clk 0:00:10.5]} 52. Qf3+ {[%clk 0:00:14.8]} 52... Kh4
{[%clk 0:00:11.9]} 53. Qf4+ {[%clk 0:00:16.2]} 53... Kh3 {[%clk 0:00:13.3]} 54.
Qf3+ {[%clk 0:00:17.8]} 54... Kh4 {[%clk 0:00:14.7]} 55. Qf4+ {[%clk 0:00:19.3]}
55... Kh3 {[%clk 0:00:16]} 1/2-1/2